[Event "Early-Titled-Tuesday-Blitz-January-30-2024"]
[Site "Chess.com"]
[Date "2024.01.30"]
[Round "4"]
[White "ImportedItalianMaple"]
[Black "monomita"]
[Result "0-1"]
[WhiteElo "2448"]
[BlackElo "2773"]
[TimeControl "180+1"]
[EndTime "8:42:09 PST"]
[Termination "monomita won by resignation"]

1. e4 {[%clk 0:03:00.9]} 1... e6 {[%clk 0:02:59]} 2. Qe2 {[%clk 0:02:54.7]} 2...
d5 {[%clk 0:02:59.3]} 3. exd5 {[%clk 0:02:54.8]} 3... Qxd5 {[%clk 0:02:58.4]} 4.
Nc3 {[%clk 0:02:55.1]} 4... Qd8 {[%clk 0:02:56.6]} 5. b3 {[%clk 0:02:55.2]} 5...
Nc6 {[%clk 0:02:53.3]} 6. Nf3 {[%clk 0:02:52.9]} 6... Be7 {[%clk 0:02:39.5]} 7.
Bb2 {[%clk 0:02:52.7]} 7... Bf6 {[%clk 0:02:40.1]} 8. O-O-O {[%clk 0:02:52.4]}
8... Nh6 {[%clk 0:02:39.7]} 9. Rg1 {[%clk 0:02:42]} 9... Nf5 {[%clk 0:02:36.6]}
10. g4 {[%clk 0:02:34.6]} 10... Nfd4 {[%clk 0:02:36]} 11. Nxd4 {[%clk
0:02:34.6]} 11... Bxd4 {[%clk 0:02:36.1]} 12. Bg2 {[%clk 0:02:28.6]} 12... O-O
{[%clk 0:02:32.1]} 13. h4 {[%clk 0:02:26.6]} 13... Qxh4 {[%clk 0:02:14.4]} 14.
Bxc6 {[%clk 0:02:25.8]} 14... bxc6 {[%clk 0:02:10.7]} 15. Rh1 {[%clk 0:02:21.8]}
15... Qf6 {[%clk 0:01:51.4]} 16. Kb1 {[%clk 0:02:16.1]} 16... Qg6 {[%clk
0:01:43.6]} 17. f4 {[%clk 0:02:08.1]} 17... c5 {[%clk 0:01:23.1]} 18. Rh5 {[%clk
0:01:38.6]} 18... Bb7 {[%clk 0:01:18.7]} 19. f5 {[%clk 0:01:34.7]} 19... exf5
{[%clk 0:01:18.6]} 20. gxf5 {[%clk 0:01:35]} 20... Qg2 {[%clk 0:01:16.6]} 21.
Qxg2 {[%clk 0:01:00.5]} 21... Bxg2 {[%clk 0:01:17.5]} 22. Rg5 {[%clk 0:01:01]}
22... Bf3 {[%clk 0:01:14.2]} 23. Rf1 {[%clk 0:00:59]} 23... h6 {[%clk
0:01:04.5]} 24. Rg3 {[%clk 0:00:56.3]} 24... Bc6 {[%clk 0:01:03.6]} 25. Ne2
{[%clk 0:00:34.5]} 25... Bxb2 {[%clk 0:01:03.2]} 26. Kxb2 {[%clk 0:00:35.4]}
26... f6 {[%clk 0:00:54.8]} 27. Nf4 {[%clk 0:00:34.5]} 27... Rf7 {[%clk
0:00:42.2]} 28. d3 {[%clk 0:00:33.7]} 28... Bd7 {[%clk 0:00:39.5]} 29. Nd5
{[%clk 0:00:29]} 29... Re8 {[%clk 0:00:35.9]} 30. Rf2 {[%clk 0:00:23.1]} 30...
Re5 {[%clk 0:00:33.2]} 31. Nxc7 {[%clk 0:00:16.8]} 31... Rxf5 {[%clk 0:00:31]}
32. Rxf5 {[%clk 0:00:10.7]} 32... Bxf5 {[%clk 0:00:31.4]} 33. Na6 {[%clk
0:00:11.3]} 33... h5 {[%clk 0:00:25.9]} 34. Nxc5 {[%clk 0:00:11.8]} 34... h4
{[%clk 0:00:25.2]} 35. Rf3 {[%clk 0:00:12.4]} 35... Bg4 {[%clk 0:00:24.6]} 36.
Rf4 {[%clk 0:00:11.8]} 36... f5 {[%clk 0:00:24.5]} 37. Ne4 {[%clk 0:00:12.5]}
37... h3 {[%clk 0:00:10.5]} 38. Ng5 {[%clk 0:00:10.8]} 38... Re7 {[%clk
0:00:05.3]} 39. Rf1 {[%clk 0:00:11.4]} 39... g6 {[%clk 0:00:04.8]} 40. Rh1
{[%clk 0:00:11.4]} 40... Re3 {[%clk 0:00:05.1]} 41. d4 {[%clk 0:00:11.6]} 41...
Kg7 {[%clk 0:00:04.6]} 42. d5 {[%clk 0:00:11.7]} 42... Kf6 {[%clk 0:00:04.8]}
43. Nh7+ {[%clk 0:00:10.1]} 43... Ke5 {[%clk 0:00:04]} 44. c4 {[%clk 0:00:10.2]}
44... f4 {[%clk 0:00:03.7]} 45. Ng5 {[%clk 0:00:10.2]} 45... f3 {[%clk
0:00:03.5]} 46. Nxh3 {[%clk 0:00:10.8]} 46... Bxh3 {[%clk 0:00:02.3]} 47. Rxh3
{[%clk 0:00:11.7]} 47... g5 {[%clk 0:00:03]} 48. Rg3 {[%clk 0:00:10.1]} 48... g4
{[%clk 0:00:02.7]} 49. Kc2 {[%clk 0:00:06.4]} 49... Re2+ {[%clk 0:00:02.4]} 50.
Kd3 {[%clk 0:00:06.5]} 50... Rg2 {[%clk 0:00:03.1]} 51. d6 {[%clk 0:00:02.5]}
51... Kxd6 {[%clk 0:00:03.1]} 52. c5+ {[%clk 0:00:01.5]} 52... Kxc5 {[%clk
0:00:03]} 53. b4+ {[%clk 0:00:02.4]} 53... Kxb4 {[%clk 0:00:02.7]} 0-1

[Event "Early-Titled-Tuesday-Blitz-January-30-2024"]
[Site "Chess.com"]
[Date "2024.01.30"]
[Round "4"]
[White "EfrenRamos1"]
[Black "LeoWin2012"]
[Result "1-0"]
[WhiteElo "2442"]
[BlackElo "2201"]
[TimeControl "180+1"]
[EndTime "8:42:11 PST"]
[Termination "EfrenRamos1 won on time"]

1. d4 {[%clk 0:03:00.9]} 1... e6 {[%clk 0:02:58.1]} 2. c4 {[%clk 0:02:55.5]}
2... c5 {[%clk 0:02:56.4]} 3. Nf3 {[%clk 0:02:48]} 3... cxd4 {[%clk 0:02:55.2]}
4. Nxd4 {[%clk 0:02:47.7]} 4... Nc6 {[%clk 0:02:55.9]} 5. Nc3 {[%clk 0:02:44.7]}
5... Nf6 {[%clk 0:02:54.4]} 6. g3 {[%clk 0:02:43.8]} 6... Bc5 {[%clk 0:02:50.1]}
7. e3 {[%clk 0:02:39.5]} 7... O-O {[%clk 0:02:45.1]} 8. Bg2 {[%clk 0:02:37.5]}
8... d5 {[%clk 0:02:42]} 9. cxd5 {[%clk 0:02:35.6]} 9... exd5 {[%clk 0:02:37.4]}
10. Nb3 {[%clk 0:02:24.2]} 10... Bb4 {[%clk 0:02:35.8]} 11. O-O {[%clk
0:02:22.3]} 11... Bxc3 {[%clk 0:02:34]} 12. bxc3 {[%clk 0:02:21.8]} 12... Re8
{[%clk 0:02:30.7]} 13. h3 {[%clk 0:02:10.2]} 13... Ne4 {[%clk 0:02:24.9]} 14.
Bb2 {[%clk 0:02:09.1]} 14... Bf5 {[%clk 0:02:18.4]} 15. Nd4 {[%clk 0:02:07]}
15... Bg6 {[%clk 0:02:14.8]} 16. Nxc6 {[%clk 0:01:59.9]} 16... bxc6 {[%clk
0:02:15.7]} 17. c4 {[%clk 0:01:55.9]} 17... dxc4 {[%clk 0:02:11.5]} 18. Qc1
{[%clk 0:01:53.9]} 18... Qd3 {[%clk 0:01:56.9]} 19. Re1 {[%clk 0:01:32.4]} 19...
c3 {[%clk 0:01:50.4]} 20. Ba3 {[%clk 0:01:30.9]} 20... Rad8 {[%clk 0:01:37.2]}
21. Rb1 {[%clk 0:01:17.2]} 21... Nd2 {[%clk 0:00:56.3]} 22. Rb7 {[%clk
0:01:12.3]} 22... Be4 {[%clk 0:00:49.3]} 23. Qd1 {[%clk 0:00:47.2]} 23... c2
{[%clk 0:00:37.2]} 24. Qh5 {[%clk 0:00:41.1]} 24... Bg6 {[%clk 0:00:27.2]} 25.
Qc5 {[%clk 0:00:36.5]} 25... Ne4 {[%clk 0:00:20.7]} 26. Qa5 {[%clk 0:00:26.5]}
26... Qd2 {[%clk 0:00:14]} 27. Qxd2 {[%clk 0:00:22.2]} 27... Rxd2 {[%clk
0:00:14.9]} 28. Bc1 {[%clk 0:00:19.9]} 28... Rd1 {[%clk 0:00:14.2]} 29. Kf1
{[%clk 0:00:20.5]} 29... Nc3 {[%clk 0:00:09.8]} 30. e4 {[%clk 0:00:17.5]} 30...
h6 {[%clk 0:00:02.2]} 31. f3 {[%clk 0:00:16.4]} 31... Rxe1+ {[%clk 0:00:02.2]}
32. Kxe1 {[%clk 0:00:16.3]} 32... Rd8 {[%clk 0:00:03.1]} 33. Bd2 {[%clk
0:00:16.7]} 33... Nb1 {[%clk 0:00:02.5]} 34. Be3 {[%clk 0:00:15.8]} 34... Rd1+
{[%clk 0:00:03.2]} 35. Ke2 {[%clk 0:00:16.4]} 35... c1=Q {[%clk 0:00:04.1]} 36.
Bxc1 {[%clk 0:00:16.1]} 36... Rxc1 {[%clk 0:00:05]} 37. Rb8+ {[%clk 0:00:16.2]}
37... Kh7 {[%clk 0:00:04.6]} 38. f4 {[%clk 0:00:17.1]} 38... Rc2+ {[%clk
0:00:04.9]} 39. Kf1 {[%clk 0:00:15.7]} 39... Nd2+ {[%clk 0:00:04]} 40. Kg1
{[%clk 0:00:16.3]} 40... Nxe4 {[%clk 0:00:04.1]} 41. g4 {[%clk 0:00:16]} 41...
Ng3 {[%clk 0:00:03.9]} 42. f5 {[%clk 0:00:16.1]} 42... Ne2+ {[%clk 0:00:04.4]}
43. Kh1 {[%clk 0:00:14.8]} 43... Nf4 {[%clk 0:00:05]} 44. Be4 {[%clk 0:00:14.3]}
44... Rc1+ {[%clk 0:00:04.4]} 45. Kh2 {[%clk 0:00:14]} 45... Bxf5 {[%clk
0:00:05.3]} 46. gxf5 {[%clk 0:00:12.2]} 46... f6 {[%clk 0:00:05.7]} 47. Rc8
{[%clk 0:00:10.9]} 47... Re1 {[%clk 0:00:04.4]} 48. Bxc6 {[%clk 0:00:09.8]}
48... Re2+ {[%clk 0:00:04.7]} 49. Kg3 {[%clk 0:00:09.1]} 49... Rxa2 {[%clk
0:00:05.4]} 50. Kxf4 {[%clk 0:00:07.4]} 50... Rf2+ {[%clk 0:00:05.5]} 51. Bf3
{[%clk 0:00:07.3]} 51... a5 {[%clk 0:00:04.9]} 52. Kg3 {[%clk 0:00:07.8]} 52...
Rf1 {[%clk 0:00:04.9]} 53. Kg2 {[%clk 0:00:07.5]} 53... Ra1 {[%clk 0:00:04.9]}
54. Bh5 {[%clk 0:00:08]} 54... g5 {[%clk 0:00:03.9]} 55. fxg6+ {[%clk
0:00:07.9]} 55... Kg7 {[%clk 0:00:04.2]} 56. Rc7+ {[%clk 0:00:08.7]} 56... Kg8
{[%clk 0:00:04.6]} 57. Bf3 {[%clk 0:00:07.9]} 57... Ra2+ {[%clk 0:00:01.6]} 58.
Kg3 {[%clk 0:00:08]} 58... Rd2 {[%clk 0:00:02.5]} 59. Kf4 {[%clk 0:00:07.4]}
59... a4 {[%clk 0:00:02.1]} 60. Be4 {[%clk 0:00:07.7]} 60... a3 {[%clk
0:00:02.2]} 61. Bf5 {[%clk 0:00:08.3]} 1-0

[Event "Early-Titled-Tuesday-Blitz-January-30-2024"]
[Site "Chess.com"]
[Date "2024.01.30"]
[Round "4"]
[White "LastHeroJr"]
[Black "alexrustemov"]
[Result "1-0"]
[WhiteElo "2474"]
[BlackElo "2770"]
[TimeControl "180+1"]
[EndTime "8:42:12 PST"]
[Termination "LastHeroJr won by checkmate"]

1. e4 {[%clk 0:03:00.9]} 1... e6 {[%clk 0:02:59.3]} 2. d4 {[%clk 0:03:00.2]}
2... d5 {[%clk 0:02:59.6]} 3. Nd2 {[%clk 0:03:00.3]} 3... dxe4 {[%clk
0:02:59.9]} 4. Nxe4 {[%clk 0:03:00.2]} 4... Bd7 {[%clk 0:03:00.4]} 5. Nf3 {[%clk
0:02:58.8]} 5... Bc6 {[%clk 0:03:00.8]} 6. Bd3 {[%clk 0:02:58.9]} 6... Nd7
{[%clk 0:03:01.4]} 7. O-O {[%clk 0:02:58.4]} 7... Ngf6 {[%clk 0:03:01.8]} 8. Bg5
{[%clk 0:02:50]} 8... Be7 {[%clk 0:03:00.8]} 9. Nxf6+ {[%clk 0:02:48.6]} 9...
Bxf6 {[%clk 0:03:00.9]} 10. Bxf6 {[%clk 0:02:46.4]} 10... Qxf6 {[%clk
0:03:01.2]} 11. Be2 {[%clk 0:02:31.6]} 11... O-O-O {[%clk 0:02:59.5]} 12. c3
{[%clk 0:02:22.7]} 12... Rhe8 {[%clk 0:02:42]} 13. b4 {[%clk 0:02:04.1]} 13...
Bxf3 {[%clk 0:02:39.8]} 14. Bxf3 {[%clk 0:02:04]} 14... e5 {[%clk 0:02:40.4]}
15. Qa4 {[%clk 0:01:54.9]} 15... Kb8 {[%clk 0:02:35.7]} 16. Rfe1 {[%clk
0:01:38.2]} 16... Nb6 {[%clk 0:02:29.4]} 17. Qb3 {[%clk 0:01:03.1]} 17... exd4
{[%clk 0:02:26.3]} 18. cxd4 {[%clk 0:01:01.5]} 18... Re7 {[%clk 0:02:08]} 19. a4
{[%clk 0:00:44.8]} 19... Rxd4 {[%clk 0:01:31.1]} 20. a5 {[%clk 0:00:34.2]} 20...
Nc4 {[%clk 0:01:31.2]} 21. Rxe7 {[%clk 0:00:14.8]} 21... Qxe7 {[%clk 0:01:28.6]}
22. Qc3 {[%clk 0:00:14.9]} 22... Qe5 {[%clk 0:01:02.7]} 23. Re1 {[%clk
0:00:12.7]} 23... Qf6 {[%clk 0:00:27.1]} 24. Qxd4 {[%clk 0:00:09.8]} 24... Nd6
{[%clk 0:00:20.7]} 25. Qxf6 {[%clk 0:00:05.9]} 25... gxf6 {[%clk 0:00:21.6]} 26.
Bd5 {[%clk 0:00:05]} 26... c6 {[%clk 0:00:20.2]} 27. Ba2 {[%clk 0:00:05.4]}
27... Kc7 {[%clk 0:00:20]} 28. Re7+ {[%clk 0:00:05.7]} 28... Kd8 {[%clk
0:00:20.2]} 29. Re1 {[%clk 0:00:05.5]} 29... Kc7 {[%clk 0:00:19.3]} 30. g3
{[%clk 0:00:05.9]} 30... b5 {[%clk 0:00:16.8]} 31. Bxf7 {[%clk 0:00:05.6]} 31...
Kd7 {[%clk 0:00:09.1]} 32. Bg8 {[%clk 0:00:05.8]} 32... h6 {[%clk 0:00:09]} 33.
h4 {[%clk 0:00:06.1]} 33... c5 {[%clk 0:00:06.7]} 34. bxc5 {[%clk 0:00:05.2]}
34... Nb7 {[%clk 0:00:07.6]} 35. Rd1+ {[%clk 0:00:02.5]} 35... Kc7 {[%clk
0:00:07.7]} 36. c6 {[%clk 0:00:02.6]} 36... Nxa5 {[%clk 0:00:07.7]} 37. Bd5
{[%clk 0:00:02.1]} 37... Nc4 {[%clk 0:00:02.5]} 38. Bxc4 {[%clk 0:00:01.1]}
38... bxc4 {[%clk 0:00:03.4]} 39. Rc1 {[%clk 0:00:01.4]} 39... Kxc6 {[%clk
0:00:04.3]} 40. Rxc4+ {[%clk 0:00:00.7]} 40... Kb5 {[%clk 0:00:05.2]} 41. Rc1
{[%clk 0:00:01.6]} 41... a5 {[%clk 0:00:06.1]} 42. g4 {[%clk 0:00:02.4]} 42...
a4 {[%clk 0:00:06.3]} 43. f4 {[%clk 0:00:03.3]} 43... a3 {[%clk 0:00:06.6]} 44.
g5 {[%clk 0:00:04]} 44... hxg5 {[%clk 0:00:06.4]} 45. fxg5 {[%clk 0:00:04.9]}
45... fxg5 {[%clk 0:00:07.3]} 46. hxg5 {[%clk 0:00:05.7]} 46... Kb4 {[%clk
0:00:08.2]} 47. g6 {[%clk 0:00:05.6]} 47... Kb3 {[%clk 0:00:09.1]} 48. g7 {[%clk
0:00:06.2]} 48... Kb2 {[%clk 0:00:10]} 49. Rf1 {[%clk 0:00:05.8]} 49... a2
{[%clk 0:00:09.7]} 50. g8=Q {[%clk 0:00:06.7]} 50... a1=Q {[%clk 0:00:10.4]} 51.
Qg7+ {[%clk 0:00:07.6]} 51... Kb3 {[%clk 0:00:10.3]} 52. Qxa1 {[%clk 0:00:07.5]}
52... Kc4 {[%clk 0:00:11.2]} 53. Rc1+ {[%clk 0:00:07.2]} 53... Kd3 {[%clk
0:00:11.4]} 54. Rd1+ {[%clk 0:00:06.4]} 54... Ke4 {[%clk 0:00:12.3]} 55. Qd4+
{[%clk 0:00:05.6]} 55... Kf5 {[%clk 0:00:13.2]} 56. Rf1+ {[%clk 0:00:04.8]}
56... Kg6 {[%clk 0:00:14.1]} 57. Rf6+ {[%clk 0:00:03.7]} 57... Kg7 {[%clk
0:00:13.9]} 58. Rf5+ {[%clk 0:00:03.6]} 58... Kg6 {[%clk 0:00:14.3]} 59. Qg4+
{[%clk 0:00:03.2]} 59... Kh6 {[%clk 0:00:14.4]} 60. Rh5# {[%clk 0:00:04.1]} 1-0

[Event "Early-Titled-Tuesday-Blitz-January-30-2024"]
[Site "Chess.com"]
[Date "2024.01.30"]
[Round "4"]
[White "LimeInTheCoconut"]
[Black "AradNazari"]
[Result "1/2-1/2"]
[WhiteElo "2477"]
[BlackElo "2692"]
[TimeControl "180+1"]
[EndTime "8:42:16 PST"]
[Termination "Game drawn by repetition"]

1. e4 {[%clk 0:03:00.9]} 1... c5 {[%clk 0:02:53.2]} 2. Nf3 {[%clk 0:03:00]} 2...
d6 {[%clk 0:02:53.6]} 3. c3 {[%clk 0:02:57.1]} 3... Nf6 {[%clk 0:02:53.3]} 4. h3
{[%clk 0:02:57.2]} 4... g6 {[%clk 0:02:52.8]} 5. Bd3 {[%clk 0:02:57.4]} 5... Bg7
{[%clk 0:02:53.3]} 6. Bc2 {[%clk 0:02:58.2]} 6... O-O {[%clk 0:02:54]} 7. O-O
{[%clk 0:02:58.5]} 7... Nc6 {[%clk 0:02:54.4]} 8. d4 {[%clk 0:02:58.4]} 8... e5
{[%clk 0:02:55]} 9. dxe5 {[%clk 0:02:57.1]} 9... dxe5 {[%clk 0:02:54.6]} 10.
Qxd8 {[%clk 0:02:52.4]} 10... Rxd8 {[%clk 0:02:55.5]} 11. Be3 {[%clk 0:02:52.3]}
11... b6 {[%clk 0:02:53.5]} 12. a4 {[%clk 0:02:44.7]} 12... Ba6 {[%clk
0:02:47.7]} 13. Re1 {[%clk 0:02:40]} 13... Bd3 {[%clk 0:02:45.9]} 14. Bxd3
{[%clk 0:02:35.3]} 14... Rxd3 {[%clk 0:02:46.8]} 15. Nfd2 {[%clk 0:02:31.6]}
15... Rad8 {[%clk 0:02:43.4]} 16. Kf1 {[%clk 0:02:30.9]} 16... Na5 {[%clk
0:02:39.9]} 17. Ke2 {[%clk 0:02:21.5]} 17... h5 {[%clk 0:02:27.8]} 18. Na3
{[%clk 0:01:30.8]} 18... Kh7 {[%clk 0:02:24.8]} 19. Bg5 {[%clk 0:01:19.1]} 19...
R8d7 {[%clk 0:02:12.4]} 20. f3 {[%clk 0:00:29.7]} 20... Bh6 {[%clk 0:02:05.9]}
21. Bxh6 {[%clk 0:00:24.8]} 21... Kxh6 {[%clk 0:02:04.8]} 22. Nac4 {[%clk
0:00:15.5]} 22... Ne8 {[%clk 0:01:54.2]} 23. Rad1 {[%clk 0:00:14.2]} 23... Nc6
{[%clk 0:01:34.8]} 24. Nf1 {[%clk 0:00:10.6]} 24... Rxd1 {[%clk 0:01:34.8]} 25.
Rxd1 {[%clk 0:00:11.5]} 25... Rxd1 {[%clk 0:01:35]} 26. Kxd1 {[%clk 0:00:12.4]}
26... Kg7 {[%clk 0:01:31.3]} 27. Nfe3 {[%clk 0:00:12.9]} 27... Kf6 {[%clk
0:01:29.8]} 28. Nd5+ {[%clk 0:00:13.1]} 28... Ke6 {[%clk 0:01:30.2]} 29. Kd2
{[%clk 0:00:11.9]} 29... Nd6 {[%clk 0:01:28.8]} 30. Nxd6 {[%clk 0:00:11.6]}
30... Kxd6 {[%clk 0:01:29.7]} 31. h4 {[%clk 0:00:11.3]} 31... Na5 {[%clk
0:01:23.4]} 32. Kc2 {[%clk 0:00:10.5]} 32... Nc6 {[%clk 0:01:17.2]} 33. b3
{[%clk 0:00:10.4]} 33... Nd8 {[%clk 0:01:17.3]} 34. Kd3 {[%clk 0:00:09.8]} 34...
Ne6 {[%clk 0:01:15.2]} 35. g3 {[%clk 0:00:07]} 35... Nd8 {[%clk 0:00:54.3]} 36.
Kc4 {[%clk 0:00:07.2]} 36... Kc6 {[%clk 0:00:49.9]} 37. Ne7+ {[%clk 0:00:06.4]}
37... Kd7 {[%clk 0:00:50.6]} 38. Nd5 {[%clk 0:00:06.5]} 38... Kc6 {[%clk
0:00:36.2]} 39. Ne7+ {[%clk 0:00:06.7]} 39... Kd6 {[%clk 0:00:35.4]} 40. Nd5
{[%clk 0:00:05.7]} 40... Nc6 {[%clk 0:00:22.5]} 41. Kb5 {[%clk 0:00:05.7]} 41...
Nb8 {[%clk 0:00:23.1]} 42. a5 {[%clk 0:00:05.4]} 42... bxa5 {[%clk 0:00:20.6]}
43. Kxa5 {[%clk 0:00:06]} 43... f5 {[%clk 0:00:19.7]} 44. Kb5 {[%clk 0:00:06]}
44... Nc6 {[%clk 0:00:11.3]} 45. Ka6 {[%clk 0:00:04.8]} 45... Ne7 {[%clk
0:00:07.5]} 46. Nxe7 {[%clk 0:00:04.1]} 46... Kxe7 {[%clk 0:00:08.4]} 47. Kxa7
{[%clk 0:00:03.9]} 47... f4 {[%clk 0:00:04.1]} 48. gxf4 {[%clk 0:00:03.8]} 48...
exf4 {[%clk 0:00:04.8]} 49. b4 {[%clk 0:00:04.4]} 49... cxb4 {[%clk 0:00:04.5]}
50. cxb4 {[%clk 0:00:05.3]} 50... g5 {[%clk 0:00:05.4]} 51. b5 {[%clk
0:00:04.1]} 51... g4 {[%clk 0:00:05.7]} 52. b6 {[%clk 0:00:04.8]} 52... g3
{[%clk 0:00:06.2]} 53. b7 {[%clk 0:00:05.6]} 53... g2 {[%clk 0:00:06.8]} 54.
b8=Q {[%clk 0:00:06.4]} 54... g1=Q+ {[%clk 0:00:07.4]} 55. Qb6 {[%clk
0:00:05.4]} 55... Qe3 {[%clk 0:00:06.4]} 56. Kb7 {[%clk 0:00:04.8]} 56... Qxf3
{[%clk 0:00:06.8]} 57. Qc7+ {[%clk 0:00:04.8]} 57... Ke6 {[%clk 0:00:07.1]} 58.
Qc6+ {[%clk 0:00:05.1]} 58... Ke7 {[%clk 0:00:07.8]} 59. Qc7+ {[%clk 0:00:03.8]}
59... Ke8 {[%clk 0:00:05]} 60. Qc8+ {[%clk 0:00:04.1]} 60... Ke7 {[%clk
0:00:05.1]} 61. Qc7+ {[%clk 0:00:05]} 1/2-1/2

[Event "Early-Titled-Tuesday-Blitz-January-30-2024"]
[Site "Chess.com"]
[Date "2024.01.30"]
[Round "4"]
[White "BocharovD"]
[Black "Shield12"]
[Result "1-0"]
[WhiteElo "2855"]
[BlackElo "3000"]
[TimeControl "180+1"]
[EndTime "8:42:30 PST"]
[Termination "BocharovD won on time"]

1. c4 {[%clk 0:03:00.9]} 1... e5 {[%clk 0:02:54.9]} 2. d3 {[%clk 0:03:00.3]}
2... Nf6 {[%clk 0:02:54.8]} 3. Nf3 {[%clk 0:03:00.5]} 3... Nc6 {[%clk 0:02:55]}
4. a3 {[%clk 0:03:00.3]} 4... d5 {[%clk 0:02:55.4]} 5. cxd5 {[%clk 0:03:01.2]}
5... Nxd5 {[%clk 0:02:56.3]} 6. e4 {[%clk 0:02:59.8]} 6... Nf6 {[%clk
0:02:56.4]} 7. Be3 {[%clk 0:02:53.8]} 7... Ng4 {[%clk 0:02:53.9]} 8. Bg5 {[%clk
0:02:48.3]} 8... Be7 {[%clk 0:02:52]} 9. Bxe7 {[%clk 0:02:46.5]} 9... Qxe7
{[%clk 0:02:52.9]} 10. h3 {[%clk 0:02:46.7]} 10... Nf6 {[%clk 0:02:51.5]} 11.
Nbd2 {[%clk 0:02:47.2]} 11... O-O {[%clk 0:02:50.9]} 12. Rc1 {[%clk 0:02:47.4]}
12... Rd8 {[%clk 0:02:50.5]} 13. Be2 {[%clk 0:02:47.4]} 13... a5 {[%clk
0:02:47]} 14. O-O {[%clk 0:02:34.7]} 14... Nd7 {[%clk 0:02:43.7]} 15. Nc4 {[%clk
0:02:33.7]} 15... Nc5 {[%clk 0:02:41.7]} 16. b4 {[%clk 0:00:55.7]} 16... axb4
{[%clk 0:02:40.2]} 17. axb4 {[%clk 0:00:56.6]} 17... Nxb4 {[%clk 0:02:37.8]} 18.
Ncxe5 {[%clk 0:00:45.7]} 18... f6 {[%clk 0:02:35.4]} 19. Rc4 {[%clk 0:00:34.4]}
19... Nba6 {[%clk 0:01:44.1]} 20. Ng4 {[%clk 0:00:30.2]} 20... Be6 {[%clk
0:01:42.2]} 21. Rd4 {[%clk 0:00:30.2]} 21... Nb3 {[%clk 0:01:33.8]} 22. Rxd8+
{[%clk 0:00:29.7]} 22... Rxd8 {[%clk 0:01:34.7]} 23. Ne3 {[%clk 0:00:29]} 23...
Nac5 {[%clk 0:01:31.3]} 24. Qc2 {[%clk 0:00:28.2]} 24... b6 {[%clk 0:01:24.8]}
25. Rb1 {[%clk 0:00:20.2]} 25... g6 {[%clk 0:01:12.2]} 26. Bf1 {[%clk
0:00:18.4]} 26... Kg7 {[%clk 0:01:07.1]} 27. Nd5 {[%clk 0:00:18.3]} 27... Bxd5
{[%clk 0:01:06.2]} 28. exd5 {[%clk 0:00:19.2]} 28... Rxd5 {[%clk 0:01:04.8]} 29.
Rxb3 {[%clk 0:00:18.5]} 29... Nxb3 {[%clk 0:01:04.2]} 30. Qxb3 {[%clk
0:00:19.4]} 30... Ra5 {[%clk 0:00:57.1]} 31. Qb2 {[%clk 0:00:18.6]} 31... b5
{[%clk 0:00:41]} 32. d4 {[%clk 0:00:19]} 32... b4 {[%clk 0:00:40.9]} 33. Bc4
{[%clk 0:00:18.4]} 33... Ra3 {[%clk 0:00:40.2]} 34. Bb3 {[%clk 0:00:16.8]} 34...
Ra8 {[%clk 0:00:36.6]} 35. Qc2 {[%clk 0:00:17.1]} 35... Rd8 {[%clk 0:00:35.6]}
36. Qc4 {[%clk 0:00:16.9]} 36... Re8 {[%clk 0:00:33.1]} 37. g3 {[%clk
0:00:17.4]} 37... Rd8 {[%clk 0:00:32.4]} 38. Kg2 {[%clk 0:00:18]} 38... Rc8
{[%clk 0:00:31.9]} 39. h4 {[%clk 0:00:18.9]} 39... Rd8 {[%clk 0:00:31.1]} 40. d5
{[%clk 0:00:19]} 40... Re8 {[%clk 0:00:26.8]} 41. Nd4 {[%clk 0:00:19.2]} 41...
Qe4+ {[%clk 0:00:18.2]} 42. Kh2 {[%clk 0:00:19.6]} 42... Qe1 {[%clk 0:00:18.4]}
43. Ne6+ {[%clk 0:00:19.1]} 43... Kh8 {[%clk 0:00:10.8]} 44. Qf4 {[%clk
0:00:18.4]} 44... Qe5 {[%clk 0:00:08.2]} 45. Qf3 {[%clk 0:00:17.6]} 45... f5
{[%clk 0:00:06.6]} 46. Ng5 {[%clk 0:00:17.2]} 46... Kg7 {[%clk 0:00:06.3]} 47.
Ne6+ {[%clk 0:00:16.6]} 47... Kf6 {[%clk 0:00:06.3]} 48. Qd3 {[%clk 0:00:16.6]}
48... Qc3 {[%clk 0:00:05.2]} 49. Qd1 {[%clk 0:00:16.5]} 49... c5 {[%clk
0:00:04.7]} 50. dxc6 {[%clk 0:00:16.2]} 50... Rxe6 {[%clk 0:00:05.1]} 51. Bxe6
{[%clk 0:00:17.1]} 51... Kxe6 {[%clk 0:00:05.9]} 52. Qd7+ {[%clk 0:00:17.6]}
52... Kf6 {[%clk 0:00:05.1]} 53. c7 {[%clk 0:00:18.5]} 53... Qc2 {[%clk
0:00:04.5]} 54. Qd8+ {[%clk 0:00:18]} 54... Kg7 {[%clk 0:00:05]} 55. Kg2 {[%clk
0:00:18.3]} 55... Qc6+ {[%clk 0:00:04.3]} 56. Kh2 {[%clk 0:00:18.5]} 56... Qc2
{[%clk 0:00:04.4]} 57. Qe7+ {[%clk 0:00:18.3]} 57... Kh6 {[%clk 0:00:04.7]} 58.
Qg5+ {[%clk 0:00:18]} 58... Kg7 {[%clk 0:00:04.5]} 59. Qe7+ {[%clk 0:00:18.6]}
59... Kh6 {[%clk 0:00:05.1]} 60. Kg2 {[%clk 0:00:18.5]} 60... b3 {[%clk
0:00:04]} 61. Qf8+ {[%clk 0:00:18]} 61... Kh5 {[%clk 0:00:03.4]} 62. c8=Q {[%clk
0:00:18.9]} 62... Qe4+ {[%clk 0:00:03.5]} 63. Kh2 {[%clk 0:00:19.4]} 63... b2
{[%clk 0:00:03.5]} 64. Qd7 {[%clk 0:00:17.4]} 64... Kg4 {[%clk 0:00:01.4]} 65.
Qxh7 {[%clk 0:00:17.1]} 1-0